Cogmind - Beta 14 @@@ ROGUE MODE // 2025.03.03 @ 16:22:34 Player: REN Result: Destroyed by S-10 Pest with Light Assault Rifle Performance ------------- Evolutions (0) 0 Regions Visited (1) 200 Robots Destroyed (3) 15 Value Destroyed (115) 115 Prototype IDs (0) 0 Alien Tech Used (0) 0 Bonus (0) 0 TOTAL SCORE: 330 Bonus ------- None Cogmind --------- Core Integrity 0/250 Matter 33/300 Energy 103/600 System Corruption 0% Temperature Cool (0) Movement Walking (120) Location -10/Materials Parts ------- > --- POWER (1) -------- (None) > --- PROPULSION (2) --- Aluminum Leg > --- UTILITY (2) ------ High-capacity Battery High-capacity Battery > --- WEAPON (2) ------- (None) > --- INVENTORY (5) ---- Ion Engine Light Ion Engine Peak State ------------ > --- POWER ------------ Light Ion Engine > --- PROPULSION ------- Aluminum Leg Aluminum Leg > --- UTILITY ---------- (None) > --- WEAPON ----------- Assault Rifle Light Assault Rifle > --- INVENTORY -------- (None) [Rating: 5] Favorites ----------- Power Ion Engine Engine Ion Engine Propulsion Aluminum Leg Leg Aluminum Leg Utility High-capacity Battery Storage High-capacity Battery Weapon Assault Rifle Ballistic Gun Assault Rifle Build | -11 -10 ------- Run | Yrd Mat Slots Evolved . | . . Power . | . . Propulsion . | . . Utility . | . . Weapon . | . . Parts Attached 11 | 7 4 Power 3 | 2 1 Engine 3 | 2 1 Core . | . . Reactor . | . . Propulsion 3 | 2 1 Treads . | . . Leg 3 | 2 1 Wheel . | . . Hover . | . . Flight . | . . Utility 2 | . 2 Device . | . . Storage 2 | . 2 Processor . | . . Hackware . | . . Protection . | . . Artifact . | . . Weapon 3 | 3 . Energy Gun . | . . Energy Cannon . | . . Ballistic Gun 3 | 3 . Ballistic Cannon . | . . Launcher . | . . Special Weapon . | . . Impact Weapon . | . . Slashing Weapon . | . . Piercing Weapon . | . . Special Melee Weapon . | . . Unidentified Prototypes . | . . Parts Lost 5 | . 5 Power 1 | . 1 Propulsion 2 | . 2 Utility . | . . Weapon 2 | . 2 Highest Loss Streak 4 | . 4 To Critical Strikes 1 | . 1 Average Slot Usage (%) 59 | . 59 Engine 11 | . 11 Leg 21 | . 21 Storage 1 | . 1 Ballistic Gun 23 | . 23 Peak Build Rating 5 | 5 5 Average Rating 3 | 3 4 On Entrance 2 | . 5 Naked Turns 5 | . 5 Heaviest Build 8 | 8 8 Greatest Support 20 | 20 20 Greatest Overweight (x) 2 | . 2 Average Overweight (x) . | . . Largest Inventory Capacity 5 | 5 5 Average Capacity 5 | 5 5 Most Carried 2 | 1 2 Average Carried . | . 1 Final Capacity 5 | 5 5 Final Carried 2 | 1 2 Class Distribution -------------------- 100% | Mutant Dominant Class ---------------- Mutant | -10/Materials Resources | -11 -10 ----------- Run | Yrd Mat Matter Collected 47 | . 47 Remotely . | . . Salvage Created 132 | 45 87 Parts 10 | 3 7 Haulers Intercepted . | . . Recyclers Shooed . | . . Parts Field Recycled . | . . Retrieved Matter . | . . Parts Self-Destructed . | . . Prevented . | . . Kills | -11 -10 ------- Run | Yrd Mat Combat Hostiles Destroyed 3 | 1 2 Guns 3 | 1 2 Classes Destroyed 1 | 1 . Grunt 3 | 1 2 Best Kill Streak 2 | 1 2 Combat Bots Only 2 | 1 2 Max Kills in Single Turn 1 | 1 1 Gunslinging . | . . Exploded . | . . Melee . | . . Uniques/NPCs Destroyed . | . . Combat | -11 -10 -------- Run | Yrd Mat Hostile Shots Fired 121 | 3 118 Missed 37 | 3 34 Damage Taken 724 | . 724 Core 257 | . 257 Absorbed by Shields . | . . Core Remaining (%) 100 | 100 . Volleys Fired 22 | 3 19 Largest 1 | 1 1 Hottest 20 | 20 20 Shots Fired 22 | 3 19 Gun 22 | 3 19 Cannon . | . . Launcher . | . . Special . | . . Kinetic 22 | 3 19 Thermal . | . . Explosive . | . . Electromagnetic . | . . Robot Hit Streak 8 | 2 8 Robot Miss Streak 4 | 1 4 Penetration Max . | . . Secondary Targets . | . . Shots Hit Robots 15 | 2 13 Core Hits 8 | 2 6 Critical Kills . | . . Critical Parts Destroyed . | . . Critical Strikes . | . . Melee Attacks . | . . Impact . | . . Slashing . | . . Piercing . | . . Sneak Attacks . | . . Combat Hostiles . | . . Follow-up Attacks . | . . Damage Inflicted 186 | 24 162 Guns 171 | 24 147 Cannons . | . . Explosions . | . . Melee . | . . Ramming 15 | . 15 Kinetic 171 | 24 147 Thermal . | . . Explosive . | . . Electromagnetic . | . . Impact . | . . Slashing . | . . Piercing . | . . Highest Corruption . | . . Average Corruption . | . . Corruption Purged . | . . Corruption Blocked . | . . Overload Shots . | . . Overflow Damage . | . . Projectiles . | . . Explosions . | . . Melee . | . . Knockbacks . | . . Impact . | . . Kinetic . | . . Secondary . | . . Self-Inflicted Damage . | . . Shots . | . . Rammed . | . . Targets Rammed 11 | . 11 Kicked 11 | . 11 Crushed . | . . Highest Temperature . | . . Average Temperature . | . . Received Heat Transfer 60 | . 60 Siege Activations . | . . Robots Corrupted . | . . Combat Hostiles . | . . Parts Fried . | . . Impact Corruptions . | . . Robots Melted . | . . Combat Hostiles . | . . Parts Melted . | . . Heat Transferred . | . . Parts Sabotaged . | . . Parts Stolen . | . . Parts Stripped . | . . Power Chain Reactions . | . . Alert | -11 -10 ------- Run | Yrd Mat Peak Influence 78 | 20 78 Initial 13 | . 13 Average 26 | 2 43 Maximum Alert Level . | . . Low Security (%) 100 | 100 100 Level 1 . | . . Level 2 . | . . Level 3 . | . . Level 4 . | . . Level 5 . | . . High Security . | . . Max Security . | . . Squads Dispatched . | . . Investigation . | . . Extermination . | . . Reinforcement . | . . Assault . | . . Garrison . | . . Intercept . | . . Searches Triggered . | . . Construction Impeded . | . . Haulers Reinforced . | . . Active Scanning Responses . | . . Cargo Convoy Interrupts . | . . Stealth | -11 -10 --------- Run | Yrd Mat Distress Signals 1 | . 1 Communications Jammed . | . . Distress Signals . | . . Times Spotted 8 | 1 7 Peak Tracking Total 5 | 1 5 Tactical Retreats . | . . Traps | -11 -10 ------- Run | Yrd Mat Traps Triggered . | . . Indirectly . | . . Trap Hack Attempts . | . . Triggered . | . . Disarmed . | . . Reprogrammed . | . . Reused . | . . Traps Extracted . | . . Installed . | . . Triggered . | . . Machines | -11 -10 ---------- Run | Yrd Mat Machines Disabled . | . . Max in Single Turn . | . . Machines Repaired . | . . Machines Dismantled . | . . Machines Sabotaged . | . . Overloaded Fab Kills . | . . Hacking | -11 -10 --------- Run | Yrd Mat Machines Accessed 1 | . 1 Terminals . | . . Fabricators . | . . Repair Stations . | . . Recycling Units 1 | . 1 Scanalyzers . | . . Garrison Access . | . . Total Hacks 6 | . 6 Successful 3 | . 3 Failed 3 | . 3 Catastrophic . | . . Database Lockouts . | . . Manual . | . . Terminals . | . . Fabricators . | . . Repair Stations . | . . Recycling Units 6 | . 6 Scanalyzers . | . . Garrison Access . | . . Terminal Hacks . | . . Fabricator Hacks . | . . Repair Station Hacks . | . . Recycling Unit Hacks 3 | . 3 Process 1 | . 1 Retrieve Matter 1 | . 1 Retrieve Components 1 | . 1 Scanalyzer . | . . Garrison Access Hacks . | . . Unauthorized Hacks . | . . Terminals . | . . Fabricators . | . . Repair Stations . | . . Recycling Units . | . . Scanalyzers . | . . Garrison Access . | . . Data Cores Recovered . | . . Used . | . . Hacking Detections 1 | . 1 Full Trace Events . | . . Feedback Events . | . . Feedback Blocked . | . . Robot Schematics Acquired . | . . Robots Built . | . . Authchips . | . . Time . | . . Total Robot Build Rating . | . . Part Schematics Acquired . | . . Parts Built . | . . Authchips . | . . Time . | . . Total Part Build Rating . | . . Parts Repaired . | . . Time . | . . Parts Recycled . | . . Recycled Matter . | . . Retrieved Matter . | . . Retrieved Components . | . . Parts Scanalyzed . | . . Part Schematics Acquired . | . . Parts Damaged . | . . Bothacking | -11 -10 ------------ Run | Yrd Mat Used RIF Installer . | . . Robots Hacked . | . . Non-combat . | . . Combat . | . . Robot Hacks Applied . | . . Relay Couplers Released . | . . Fabnet Peak Effective % . | . . Robots Rewired . | . . Allies Hacked . | . . Hacks Repelled . | . . Allies | -11 -10 -------- Run | Yrd Mat Total Allies . | . . Largest Group . | . . Highest-Rated Group . | . . Highest-Rated Ally . | . . Total Orders . | . . Ally Attacks . | . . Total Damage . | . . Kills . | . . Allies Corrupted . | . . Allies Melted . | . . Intel | -11 -10 ------- Run | Yrd Mat Robot Analysis Total . | . . Derelict Logs Recovered . | . . Drone Launches . | . . Drone Recoveries . | . . Exploration | -11 -10 ------------- Run | Yrd Mat Turns Passed 295 | 124 171 Spaces Moved 208 | 106 102 Core 54 | 29 25 Treads . | . . Legs 154 | 77 77 Wheels . | . . Hover . | . . Flight . | . . Fastest Speed 50 | 50 50 Average Speed 102 | 100 104 Slowest Speed 150 | 120 150 Overloaded Moves . | . . Propulsion Burnouts . | . . Robots Hopped . | . . Cave-ins Triggered . | . . Exploration Rate (%) 11 | 8 15 Regions Visited 1 Branch Regions . Pre-discovered Areas . | . . Known Exits Taken . | . . Unknown Exits Taken 1 | 1 . Scrap Searched . | . . Spaces Dug . | . . Terrain Destroyed . | . . Melee . | . . Projectile . | . . AOE . | . . Terrain Rammed . | . . Walls Destroyed . | . . Machines Disabled . | . . Actions | -11 -10 --------- Run | Yrd Mat Total 260 | 117 143 Wait 7 | . 7 Move 207 | 105 102 Hop . | . . Pick Up . | . . Fast Attach 9 | 6 3 Attach . | . . Detach 1 | 1 . Swap 2 | 1 1 Drop 1 | 1 . Fire 22 | 3 19 Melee . | . . Ram . | . . Kick 11 | . 11 Crush . | . . Escape Stasis . | . . Rewire . | . . Trap . | . . Miscellaneous . | . . Route ------- -11/Scrapyard -10/Materials History --------- Turn | Location | Event 2 | -11/Scrapyard | Met Revision 17 98 | -11/Scrapyard | Discovered new exit (range 8) 125 | -11/Scrapyard | Entered Materials 249 | -10/Materials | Core integrity fell below 50% 283 | -10/Materials | Core integrity fell below 20% 296 | -10/Materials | Destroyed by S-10 Pest with Light Assault Rifle Last Messages --------------- K-01 Serf collects debris. Kicked S-10 Pest. Kicked S-10 Pest out of the way. Kicked S-10 Pest. Kicked S-10 Pest out of the way. Aluminum Leg destroyed. Assault Rifle destroyed. Ion Engine destroyed. K-01 Serf collects debris. M-13 Machinist repairs Flight Unit. Critical hit (Destroy). Lgt. Assault Rifle destroyed. M-13 Machinist repairs Lgt. Ion Engine. Connecting with Recycling Unit... Current location identified: Materials >>Recycling(Process) Analyzing inventory... Acquired Aluminum Leg. Acquired Hcp. Battery. S-10 Pest destroyed. Map ----- +----------------------------------------------------+ | ????????????????# ??????# "" # #???? | | ????????????????# ?????# """ # #???? | | ????????????????# ?????# "" + #???? | | ????????????????# ????# """ # #???? | | ????????????????# #####!""" # ###???? | | ????????????????# * + """ # #?????? | | ????????????????# #####[ " # #?????? | | ????????????????# ????# # #?????? | | ????????????????# ?????# ]= # #?????? | | ????????????????# ?######+#### ###???? | | ???????????????? ??# %## #???? | | ???????????????## ??+ ## #???? | | ????????????????#???? """ / #???? | | ????????????????????# """ ## #???? | | ????????????????????# """ ## #???? | | ????????????????????# ### #####? | | ??????????????????????######?# # # | | ?????????????????????????????# + T ?? | | ?????????????????????????????# #????? | | ?????????????????????????????# #????? | | ?????????????????????????????# #????? | | ?????????????????????????????# #????? | | ??????????????????????######## #????? | | ??????????????????????# # #????? | | ??????????????????????#! "" # #????? | | ??????????????????????# @Y" # #????? | | ??????????????????????# s%"" # #????? | | ??????????????????????# =s r + #????? | | ??????????????????????# # #????? | | ??????????????????????######## #????? | | ???????????????????????????? ???? | | ???????????????????????????# #??? | | ???????????????????????????# #??? | | ???????????????????????????# #??? | | ???????????????????????????# #??? | | ??????????????????????????? #??? | | ?????????????????????????? # #??? | | ?????????????????????????? ### ###??? | | ?????????????????????????#???# ^ #????? | | ?????????????????????????????# #????? | | ????????????????????????????? #????? | | ?????????????????????????????# #????? | | ??????????????????????????????#+#?????? | | ??????????????????????????????????????? | | ??????????????????????????????????????? | | ??????????????????????????????????????? | | ??????????????????????????????????????? | | ??????????????????????????????????????? | | ??????????????????????????????????????? | | ??????????????????????????????????????? | +----------------------------------------------------+ Best States ------------- Heat Dissipation 25 Energy Generation 10 Energy Capacity 600 Matter Stores 90 Matter Capacity 300 Sight Range 16 Terrain Scan Density 10 Evasion (%) 55 Item Schematics ----------------- None Robot Schematics ------------------ None Fabricated ------------ Nothing Alien Tech Used ----------------- None Achievements -------------- Oops Challenges ------------ None Game ------ Seed DroneControlRigger Manual? 0 Play Time 00:08:18 Cumulative 0.5 hours Start 2025.03.03 @ 16:17:03 End 2025.03.03 @ 16:22:34 Sessions 1 Manual Loads 0 Difficulty Rogue Special Mode None Game No. 3 Rogue 3 Adventurer 0 Explorer 0 Win Type - Total 0 Types 0/0/0/0/0/0/0/0/0 Lore% 0 Gallery% 1 Achievement% 2 Wizard Run 0 Options --------- Layout 2 ASCII 0 Keyboard 1 Movement Vi Keybinds 0 Fullscreen 1 Font 28/SmallcapsGlow Map View 25x26 Zoom Use 100% Tactical HUD 0 Map Filters NONE Filters NONE Steam 1 RUN: d9a66f31-dc20-4ff9-aca1-f34a524ec364